fUSD/lending_fUSD_20251126
["ID","MTS","AMOUNT","RATE_DAILY","PERIOD"]
[394920293,1764120637784,-434.34,0.000398,2]
[394920298,1764120639785,-966.99808063,0.000398,2]
[394920299,1764120639897,-4355.85,0.000398,2]
[394920300,1764120639909,-1401.35,0.000398,2]
[394920301,1764120639920,-3985.00205755,0.000398,2]
[394920302,1764120640415,172.87256491,0.00042002,30]
[394920305,1764120643459,-25981.31607109,0.000398,2]
[394920307,1764120645901,-15193.26859127,0.000398,2]
[394920308,1764120646018,-3631.59748863,0.000398,2]
[394920309,1764120662039,200.0,0.00042002,30]
[394920311,1764120685877,179.9277533,0.00042002,30]
[394920312,1764120686745,291.41564004,0.00042002,30]
[394920313,1764120722313,-300.0,0.00038051,119]
[394920314,1764120722342,-195.0,0.00038634,120]
[394920315,1764120722370,-300.0,0.00039026,119]
[394920316,1764120722401,-300.0,0.00039026,119]
[394920317,1764120722429,-300.0,0.00039026,119]
[394920318,1764120722458,-195.0,0.00039425,120]
[394920319,1764120722487,-275.59,0.0004,120]
[394920320,1764120722514,-640.82,0.0004,120]
[394920321,1764120722540,-174.93,0.0004,120]
[394920322,1764120722566,-193.1,0.0004,120]
[394920323,1764120722599,-157.93,0.0004,120]
[394920324,1764120722625,-220.19,0.0004,120]
[394920325,1764120722654,-207.07456455,0.00040689,120]
[394920326,1764120722681,-407.33,0.000409,120]
[394920327,1764120722711,-195.0,0.00041214,120]
[394920328,1764120722739,-300.0,0.00041214,119]
[394920329,1764120722768,-837.4473,0.00041902,120]
[394920330,1764120722795,-203.32866924,0.0004194,120]
[394920331,1764120722841,-500.0,0.00043977,120]
[394920332,1764120722869,-500.0,0.00043977,120]
[394920333,1764120722897,-1329.12,0.00043977,120]
[394920334,1764120722924,-500.0,0.00044251,120]
[394920335,1764120722951,-500.0,0.00044251,120]
[394920336,1764120722979,-1329.12,0.00044251,120]
[394920337,1764120723008,-500.0,0.00044525,120]
[394920338,1764120723036,-500.0,0.00044525,120]
[394920339,1764120723081,-1329.12,0.00044525,120]
[394920340,1764120723112,-500.0,0.00044799,120]
[394920341,1764120723143,-500.0,0.00044799,120]
[394920342,1764120723173,-1329.12,0.00044799,120]
[394920343,1764120723202,-150.0,0.00045,120]
[394920344,1764120723235,-300.0,0.00045,120]
[394920345,1764120723264,-480.6,0.00045073,120]
[394920346,1764120723293,-500.0,0.00045073,120]
[394920347,1764120723323,-1329.12,0.00045073,120]
[394920348,1764120723353,-442.40429175,0.00045347,120]
[394920349,1764120723382,-1329.12,0.00045347,120]
[394920350,1764120723412,-1329.12,0.00045621,120]
[394920351,1764120723443,-1329.12,0.00045895,120]
[394920352,1764120723475,-1329.12,0.00046169,120]
[394920353,1764120723504,-1329.12,0.00046443,120]
[394920354,1764120723534,-1329.12,0.00046717,120]
[394920355,1764120723567,-1329.2452,0.00046991,120]
[394920356,1764120723595,-1177.21404872,0.0004788,100]
[394920357,1764120723623,-500.0,0.00048,120]
[394920358,1764120723892,-1000.0,0.000499,120]
[394920359,1764120723924,-295.829474,0.00049999,120]
[394920360,1764120723957,-306.45216991,0.00049999,120]
[394920361,1764120723988,-448.0,0.0005,120]
[394920362,1764120724019,-202.0,0.0005,120]
[394920363,1764120724049,-1000.0,0.00050927,120]
[394920364,1764120724079,-299.61217663,0.00051708,120]
[394920365,1764120724107,-152.83732248,0.00051755,120]
[394920366,1764120724138,-150.0,0.00051755,120]
[394920367,1764120724170,-221.38248911,0.00051892,120]
[394920368,1764120724197,-567.0,0.00052,66]
[394920369,1764120724225,-1259.2139946,0.00052,120]
[394920370,1764120724255,-567.0,0.000525,68]
[394920371,1764120724284,-567.0,0.00053,70]
[394920372,1764120724315,-1500.0,0.000539,120]
[394920373,1764120724347,-167.32935333,0.00053947,120]
[394920374,1764120724377,-6420.69211708,0.00053964,120]
[394920375,1764120724410,-1182.63574419,0.00053967,120]
[394920376,1764120724442,-588.83948888,0.00053968,120]
[394920377,1764120724480,-558.7969214,0.00053976,120]
[394920378,1764120724514,-152.0,0.0005398,120]
[394920379,1764120724546,-197.81867254,0.00053991,120]
[394920380,1764120724579,-1000.0,0.0005602,120]
[394920381,1764120724611,-679.42,0.0005675,120]
[394920382,1764120724642,-536.92816253,0.0005675,120]
[394920383,1764120724674,-474384.40273977,0.00057,120]
[394920384,1764120724707,-158.35,0.00057254,120]
[394920385,1764120724738,-599965.0,0.00057255,120]
[394920386,1764120724772,-1040.02,0.0005726,120]
[394920387,1764120724807,-176.0,0.000573,120]
[394920388,1764120724841,-4064.18737902,0.00057482,120]
[394920389,1764120724872,-152.0,0.000575,120]
[394920390,1764120724901,-500000.0,0.000575,120]
[394920391,1764120724932,-1040.02,0.00057534,120]
[394920392,1764120724967,-1298.50518992,0.00057534,120]
[394920393,1764120724997,-3022.0,0.00057534,120]
[394920394,1764120725028,-176.0,0.000578,120]
[394920395,1764120725058,-1040.02,0.00057808,120]
[394920396,1764120725089,-1000.0,0.00057999,120]
[394920397,1764120725118,-150.0,0.00058,80]
[394920398,1764120725148,-150.0,0.00058,120]
[394920399,1764120725176,-898.9289723,0.00058,120]
[394920400,1764120725203,-200.0,0.00058,120]
[394920401,1764120725230,-500000.0,0.00058,120]
[394920402,1764120725258,-1040.02,0.00058082,120]
[394920403,1764120725285,-152.0,0.000581,120]
[394920404,1764120725313,-176.0,0.000583,120]
[394920405,1764120725342,-1040.15491216,0.00058356,120]
[394920406,1764120725369,-2000.0,0.0005845,61]
[394920407,1764120725398,-152.0,0.000586,120]
[394920408,1764120725429,-1322.99372265,0.00058623,120]
[394920409,1764120725457,-1242.24493516,0.000588,120]
[394920410,1764120725486,-176.0,0.000588,120]
[394920411,1764120725512,-3138.992,0.000588,120]
[394920412,1764120725540,-19064.23,0.0005887,120]
[394920413,1764120725568,-1000.0,0.00058999,120]
[394920414,1764120725596,-150.0,0.00059,80]
[394920415,1764120725624,-1000.0,0.00059,60]
[394920416,1764120725654,-2533.07233592,0.00059,120]
[394920417,1764120725681,-500000.0,0.00059,120]
[394920418,1764120725709,-235.99718446,0.000591,120]
[394920419,1764120725736,-152.0,0.000591,120]
[394920420,1764120725764,-176.0,0.000593,120]
[394920421,1764120725795,-2000.0,0.0005935,71]
[394920422,1764120725830,-4000.0,0.00059633,120]
[394920423,1764120725869,-152.0,0.000597,120]
[394920424,1764120725904,-176.0,0.000598,120]
[394920425,1764120725936,-5777.39969208,0.0005987,120]
[394920426,1764120725978,-146883.41378279,0.0005999,120]
[394920427,1764120726011,-19619.60750705,0.0005999,120]
[394920428,1764120726043,-1000.0,0.00059999,120]
[394920429,1764120726076,-50000.0,0.0006,60]
[394920430,1764120726106,-1000.0,0.0006,120]
[394920431,1764120726134,-172.7128514,0.0006,120]
[394920432,1764120726166,-200.0,0.0006,120]
[394920433,1764120726194,-150.0,0.0006,80]
[394920434,1764120726228,-150.0,0.0006,120]
[394920435,1764120726256,-150.0,0.0006,120]
[394920436,1764120726284,-150.0,0.0006,120]
[394920437,1764120726313,-500.0,0.0006,60]
[394920438,1764120726341,-150.0,0.0006,120]
[394920439,1764120726371,-95178.41463438,0.0006,120]
[394920440,1764120733156,208.0,0.00042002,120]
[394920441,1764120743972,-178.27722043,0.00039702,120]
[394920442,1764120744041,-154.80035594,0.00052877,120]
[394920443,1764120744215,-6901.03462229,0.0006,120]
[394920444,1764120744245,-15410.0,0.0006,120]
[394920445,1764120744273,-195.35935171,0.0006,120]
[394920446,1764120744300,-163.67460336,0.0006,120]
[394920447,1764120744327,-10684.5120866,0.0006,120]
[394920448,1764120744354,-10000.0,0.0006,120]
[394920449,1764120744382,-150.0,0.0006,90]
[394920450,1764120744409,-200.0,0.0006,120]
[394920451,1764120744440,-2214.16550483,0.0006,120]
[394920452,1764120744472,-909.0849445,0.0006,120]
[394920453,1764120744499,-14842.24151539,0.0006,120]
[394920454,1764120744525,-412.28788497,0.0006,120]
[394920455,1764120744551,-500000.0,0.0006,120]
[394920456,1764120744576,-544.28550799,0.0006,120]
[394920457,1764120744603,-152.0,0.000602,120]
[394920458,1764120744629,-901.14,0.00060274,120]
[394920459,1764120744656,-176.0,0.000603,120]
[394920460,1764120744683,-176.0,0.000607,120]
[394920461,1764120744708,-152.0,0.000608,120]
[394920462,1764120744735,-2000.0,0.00061,120]
[394920463,1764120744761,-150.0,0.00061,120]
[394920464,1764120744786,-150.0,0.00061,120]
[394920465,1764120744812,-150.0,0.00061,120]
[394920466,1764120744839,-1000.0,0.00061113,120]
[394920467,1764120744867,-176.0,0.000612,120]
[394920468,1764120744894,-152.0,0.000613,120]
[394920469,1764120744923,-176.0,0.000617,120]
[394920470,1764120744953,-6012.54,0.00061742,120]
[394920471,1764120744981,-2098.02796846,0.000618,120]
[394920472,1764120745009,-152.0,0.000619,120]
[394920473,1764120745038,-1000.0,0.00061999,120]
[394920474,1764120745066,-150.0,0.00062,120]
[394920475,1764120745094,-150.0,0.00062,120]
[394920476,1764120745121,-292561.41909767,0.00062,120]
[394920477,1764120745147,-176.0,0.000622,120]
[394920478,1764120745173,-152.0,0.000624,120]
[394920479,1764120745200,-2000.0,0.0006256,71]
[394920480,1764120745226,-176.0,0.000627,120]
[394920481,1764120745253,-2172.62007611,0.000628,120]
[394920482,1764120745279,-152.0,0.000629,120]
[394920483,1764120745305,-150.0,0.00063,120]
[394920484,1764120745332,-671.72062836,0.00063,60]
[394920485,1764120745359,-32066.69510791,0.00063,120]
[394920486,1764120745386,-176.0,0.000632,120]
[394920487,1764120745417,-1019.90696288,0.000635,120]
[394920488,1764120745446,-152.0,0.000635,120]
[394920489,1764120745478,-176.0,0.000637,120]
[394920490,1764120745508,-3000.0,0.00064,120]
[394920491,1764120745536,-200.0,0.00064,120]
[394920492,1764120745563,-150.0,0.00064,120]
[394920493,1764120745589,-150.0,0.00064,120]
[394920494,1764120745617,-152.0,0.00064,120]
[394920495,1764120745648,-176.0,0.000642,120]
[394920496,1764120745679,-1000.0,0.00064441,120]
[394920497,1764120745710,-152.0,0.000646,120]
[394920498,1764120745746,-178.4,0.000646,60]
[394920499,1764120745776,-176.0,0.000647,120]
[394920500,1764120745809,-2000.0,0.0006486,71]
[394920501,1764120745843,-50000.0,0.00065,65]
[394920502,1764120745875,-1008.0,0.00065,120]
[394920503,1764120745909,-150.0,0.00065,120]
[394920504,1764120745943,-150.0,0.00065,120]
[394920505,1764120745983,-150.0,0.00065,120]
[394920506,1764120746021,-150.0,0.00065,120]
[394920507,1764120746057,-150.0,0.00065,60]
[394920508,1764120746094,-200.0,0.00065,120]
[394920509,1764120746130,-43996.52680676,0.00065,120]
[394920510,1764120746167,-152.0,0.000651,120]
[394920511,1764120746200,-176.0,0.000652,120]
[394920512,1764120746231,-152.0,0.000656,120]
[394920513,1764120746263,-176.0,0.000657,120]
[394920514,1764120746306,302.5687827,0.000602,120]
[394920515,1764120746342,304.18526289,0.000602,120]
[394920516,1764120746891,300.0,0.00041214,119]
[394920517,1764120746999,196.65352808,0.00038633,119]
[394920520,1764120804881,-1015.63716847,0.00042002,20]
[394920521,1764120804906,-383.95604799,0.00042002,20]
[394920522,1764120804932,-1093.53816819,0.00042002,26]
[394920661,1764120854945,186.16251149,0.00042002,60]
[394920664,1764120961573,200.0,0.00042002,30]
[394920665,1764121007793,208.0,0.00042002,30]
[394920666,1764121014138,208.0,0.00042002,30]
[394920667,1764121014804,588.74358997,0.00042002,30]
[394920668,1764121018605,3000.0,0.00042002,30]
[394920669,1764121018870,3000.0,0.00042002,30]
[394920670,1764121019164,219.0,0.00042002,30]
[394920671,1764121020144,1285.92513485,0.00042002,60]
[394920672,1764121023002,1000.0,0.00042002,30]
[394920673,1764121025000,3000.0,0.00042002,30]
[394920674,1764121025286,1353.0,0.00042002,30]
[394920675,1764121025825,1865.0,0.00042002,120]
[394920676,1764121029777,3000.0,0.00042002,30]
[394920677,1764121030125,2782.0,0.00042002,30]
[394920678,1764121032900,1000.0,0.00042002,30]
[394920679,1764121039644,172.87256491,0.00042002,30]
[394920680,1764121042230,200.0,0.00042002,30]
[394920681,1764121042634,1544.22567526,0.00042002,120]
[394920682,1764121042678,300.0,0.00042002,30]
[394920683,1764121045615,1000.0,0.00042002,60]
[394920684,1764121045860,347.8521065,0.00042002,30]
[394920685,1764121046756,291.41564004,0.00042002,30]
[394920686,1764121058324,1000.0,0.00042002,60]
[394920687,1764121071037,1000.0,0.00042002,120]
[394920688,1764121083761,1000.0,0.00042002,60]
[394920689,1764121096577,1000.0,0.00042002,60]
[394920690,1764121109970,334.02896656,0.00042002,30]
[394920691,1764121110868,1000.0,0.00042002,60]
[394920790,1764121123605,1000.0,0.00042017,30]
[394921031,1764121136323,1000.0,0.00042017,120]
[394921064,1764121139289,189.70303452,0.00042017,120]
[394921143,1764121149032,1000.0,0.00042017,30]
[394921156,1764121160937,1021.76054173,0.00042017,30]
[394921191,1764121161741,1000.0,0.00042017,30]
[394921379,1764121166743,312.90161007,0.00042017,30]
[394921609,1764121174438,1000.0,0.00042017,120]
[394921610,1764121187141,1000.0,0.00042017,30]
[394921720,1764121199862,1000.0,0.00042017,60]
[394921804,1764121203586,1000.0,0.00042017,30]
[394921805,1764121203796,1000.0,0.00042017,30]
[394921806,1764121203934,1000.0,0.00042017,30]
[394921807,1764121204696,1000.0,0.00042017,30]
[394921808,1764121204733,1000.0,0.00042017,30]
[394921809,1764121205114,1000.0,0.00042017,30]
[394921810,1764121205868,1000.0,0.00042017,30]
[394921811,1764121205902,1000.0,0.00042017,30]
[394921824,1764121206283,1000.0,0.00042017,30]
[394921850,1764121207068,1000.0,0.00042017,30]
[394921853,1764121207123,1000.0,0.00042017,30]
[394921896,1764121208284,1000.0,0.00042017,30]
[394921912,1764121208805,1000.0,0.00042017,30]
[394921913,1764121209170,1000.0,0.00042017,30]
[394921914,1764121209693,478.37542324,0.00042017,30]
[394921915,1764121209934,1000.0,0.00042017,30]
[394921916,1764121210313,1000.0,0.00042017,30]
[394921917,1764121211071,1000.60998217,0.00042017,30]
[394921918,1764121211416,862.23540664,0.00042017,30]
[394921950,1764121212387,223.95997,0.00042017,60]
[394921952,1764121212420,830.28652,0.00042017,60]
[394921959,1764121212559,1000.0,0.00042017,60]
[394921965,1764121212680,223.95997,0.00042017,60]
[394921967,1764121212714,830.28652,0.00042017,60]
[394921978,1764121212970,223.95997,0.00042017,60]
[394921979,1764121213005,830.28652,0.00042017,60]
[394921980,1764121213267,223.95997,0.00042017,60]
[394921981,1764121213299,830.28652,0.00042017,60]
[394921982,1764121213582,223.95997,0.00042017,60]
[394921983,1764121213802,830.28652,0.00042017,60]
[394922030,1764121217841,-654.88651075,0.0003737,2]
[394922032,1764121217863,-401.758,0.00037468,2]
[394922033,1764121217885,-374.178,0.00037468,2]
[394922034,1764121217907,-319.17748925,0.00037468,2]
[394922058,1764121225379,1000.0,0.00042017,30]
[394922084,1764121237992,1000.0,0.00042017,60]
[394922087,1764121250810,1000.0,0.00042017,30]
[394922161,1764121262866,200.0,0.00042017,30]
[394922162,1764121263506,1000.0,0.00042017,30]
[394922163,1764121276206,1000.0,0.00042017,60]
[394922164,1764121281644,727.09085576,0.00042017,60]
[394922165,1764121288911,1000.0,0.00042017,60]
[394922166,1764121301649,1000.0,0.00042017,30]
[394922167,1764121314359,1000.0,0.00042017,60]
[394922168,1764121327069,1000.0,0.00042017,60]
[394922169,1764121338027,-178.27722043,0.00037368,120]
[394922170,1764121338057,-343.53118262,0.00037418,120]
[394922171,1764121338082,-1228.19159695,0.00037468,2]
[394922172,1764121339799,1000.0,0.00042017,30]
[394922173,1764121343121,200.0,0.00042017,30]
[394922174,1764121343450,300.0,0.00042017,30]
[394922175,1764121352907,1000.0,0.00042017,30]
[394922176,1764121359023,500.0,0.00042017,30]
[394922177,1764121361540,150.0,0.00042017,30]
[394922178,1764121365535,1000.0,0.00042017,30]
[394922179,1764121378427,1000.0,0.00042017,30]
[394922180,1764121418958,561.51,0.00042017,90]
[394922181,1764121561124,200.0,0.00042017,30]
[394922182,1764121643955,200.0,0.00042017,30]
[394922183,1764121644490,300.0,0.00042017,30]
[394922184,1764121714858,666.17195914,0.00042017,60]
[394922187,1764121773238,236.18843,0.00042017,50]
[394922188,1764121796223,304.47353528,0.00042017,30]
[394922202,1764121831950,-186.25513266,0.00037368,2]
[394922203,1764121831960,-176.27709669,0.00037368,78]
[394922204,1764121831969,-665.0,0.00037467,3]
[394922205,1764121831979,-307.0,0.00037467,2]
[394922206,1764121831988,-305.0,0.00037467,3]
[394922207,1764121831998,-1600.0,0.00037467,3]
[394922208,1764121832007,-612.776,0.00037468,2]
[394922209,1764121832016,-1334.25,0.00037468,2]
[394922210,1764121832026,-1264.026,0.00037468,2]
[394922211,1764121832036,-150.0,0.00037468,2]
[394922212,1764121832045,-260.0,0.00037468,2]
[394922213,1764121832054,-564.225,0.00037468,2]
[394922214,1764121832064,-1136.756,0.00037468,2]
[394922215,1764121832074,-195.0,0.00037468,120]
[394922216,1764121832083,-300.0,0.00037468,119]
[394922217,1764121832093,-196.65352808,0.00037468,119]
[394922218,1764121832102,-195.0,0.00037864,120]
[394922219,1764121832112,-300.0,0.00037864,119]
[394922220,1764121832121,-179.35096897,0.00038,2]
[394922221,1764121832131,-200.0,0.00038513,2]
[394922222,1764121832139,-5000.0,0.00038916,120]
[394922223,1764121832149,-184.01,0.00038962,2]
[394922224,1764121832159,-384.84845341,0.00039517,2]
[394922225,1764121832168,-16729.63,0.00039517,2]
[394922226,1764121832178,-154.99,0.0003952,2]
[394922227,1764121832188,-3654.91,0.0003952,2]
[394922228,1764121832197,-2827.84,0.0003952,2]
[394922229,1764121832206,-220.10807856,0.00039545,2]
[394922230,1764121832216,-186.25513265,0.00039696,2]
[394922231,1764121832225,-181.66396599,0.00039696,2]
[394922232,1764121832234,-188.47611418,0.00039702,2]
[394922233,1764121832243,-501.26406775,0.00039773,5]
[394922234,1764121832253,-507.17908441,0.00039773,5]
[394922235,1764121832262,-172.92,0.00039795,30]
[394922237,1764121832271,-1220.58790376,0.00039795,31]
[394922239,1764121832280,-1220.58790376,0.00039795,31]
[394922241,1764121832289,-1220.58790376,0.00039795,31]
[394922243,1764121832298,-1220.58790376,0.00039795,31]
[394922245,1764121832307,-1220.58790376,0.00039795,31]
[394922247,1764121832316,-1220.58790376,0.00039795,31]
[394922249,1764121832325,-1220.58790376,0.00039795,31]
[394922251,1764121832334,-1220.58790376,0.00039795,31]
[394922253,1764121832343,-1220.58790376,0.00039795,31]
[394922255,1764121832352,-1220.58790376,0.00039795,31]
[394922257,1764121832362,-1220.58790376,0.00039795,31]
[394922259,1764121832371,-1220.58790376,0.00039795,31]
[394922261,1764121832380,-1220.58790376,0.00039795,31]
[394922263,1764121832389,-1220.58790376,0.00039795,31]
[394922265,1764121832399,-1220.58790376,0.00039795,31]
[394922267,1764121832408,-1220.58790376,0.00039795,31]
[394922269,1764121832417,-1220.58790376,0.00039795,31]
[394922271,1764121832427,-1220.58790376,0.00039795,31]
[394922273,1764121832437,-1220.58790376,0.00039795,31]
[394922275,1764121832446,-1220.58790376,0.00039795,31]
[394922277,1764121832455,-1220.58790376,0.00039795,31]
[394922279,1764121832465,-1220.58790376,0.00039795,31]
[394922281,1764121832474,-1220.58790376,0.00039795,31]
[394922283,1764121832483,-1220.58790376,0.00039795,31]
[394922285,1764121832492,-1220.58790376,0.00039795,31]
[394922287,1764121832501,-1220.58790376,0.00039795,31]
[394922288,1764121832510,-1220.58790376,0.00039795,31]
[394922290,1764121832519,-1220.58790376,0.00039795,31]
[394922293,1764121832529,-1220.58790376,0.00039795,31]
[394922294,1764121832539,-1220.58790376,0.00039795,31]
[394922297,1764121832548,-1220.58790376,0.00039795,31]
[394922299,1764121832558,-1220.58790376,0.00039795,31]
[394922301,1764121832567,-1220.58790376,0.00039795,31]
[394922302,1764121832576,-1220.58790376,0.00039795,31]
[394922304,1764121832586,-1220.58790376,0.00039795,31]
[394922307,1764121832595,-1220.58790376,0.00039795,31]
[394922308,1764121832604,-1220.58790376,0.00039795,31]
[394922310,1764121832614,-1220.58790376,0.00039795,31]
[394922313,1764121832623,-1220.58790376,0.00039795,31]
[394922314,1764121832633,-1220.58790376,0.00039795,31]
[394922317,1764121832644,-1220.58790376,0.00039795,31]
[394922318,1764121832654,-1220.58790376,0.00039795,31]
[394922321,1764121832663,-1220.58790376,0.00039795,31]
[394922322,1764121832673,-1220.58790376,0.00039795,31]
[394922323,1764121832682,-1220.58790376,0.00039795,31]
[394922324,1764121832691,-1220.58790376,0.00039795,31]
[394922325,1764121832700,-1220.58790376,0.00039795,31]
[394922326,1764121832710,-1220.58790376,0.00039795,31]
[394922327,1764121832724,-1220.58790376,0.00039795,31]
[394922328,1764121832733,-1220.58790376,0.00039795,31]
[394922329,1764121832742,-1220.58790376,0.00039795,31]
[394922330,1764121832752,-1220.58790376,0.00039795,31]
[394922331,1764121832761,-1220.58790376,0.00039795,31]
[394922332,1764121832770,-1220.58790376,0.00039795,31]
[394922333,1764121832779,-1220.58790377,0.00039795,31]
[394922334,1764121832788,-1220.58790377,0.00039795,31]
[394922335,1764121832799,-1220.58790377,0.00039795,31]
[394922336,1764121832809,-1220.58790377,0.00039795,31]
[394922337,1764121832818,-1220.58790377,0.00039795,31]
[394922338,1764121832827,-1220.58790377,0.00039795,31]
[394922339,1764121832837,-1220.58790377,0.00039795,31]
[394922340,1764121832846,-1220.58790377,0.00039795,31]
[394922341,1764121832855,-1220.58790377,0.00039795,31]
[394922342,1764121832864,-1220.58790377,0.00039795,31]
[394922343,1764121832874,-1220.58790377,0.00039795,31]
[394922344,1764121832883,-1220.58790377,0.00039795,31]
[394922345,1764121832894,-1220.58790377,0.00039795,31]
[394922346,1764121832903,-1220.58790377,0.00039795,31]
[394922347,1764121832913,-1220.58790377,0.00039795,31]
[394922348,1764121832922,-1220.58790377,0.00039795,31]
[394922349,1764121832931,-1220.58790377,0.00039795,31]
[394922350,1764121832941,-1220.58790377,0.00039795,31]
[394922351,1764121832950,-1220.58790377,0.00039795,31]
[394922352,1764121832960,-1220.58790377,0.00039795,31]
[394922353,1764121832970,-1220.58790377,0.00039795,31]
[394922354,1764121832979,-1220.58790377,0.00039795,31]
[394922355,1764121832988,-1220.58790377,0.00039795,31]
[394922356,1764121832997,-1220.58790377,0.00039795,31]
[394922357,1764121833007,-1220.58790377,0.00039795,31]
[394922358,1764121833016,-1220.58790377,0.00039795,31]
[394922359,1764121833025,-1220.58790377,0.00039795,31]
[394922360,1764121833035,-1220.58790377,0.00039795,31]
[394922361,1764121833044,-1220.58790377,0.00039795,31]
[394922362,1764121833054,-1220.58790377,0.00039795,31]
[394922363,1764121833063,-1220.58790377,0.00039795,31]
[394922364,1764121833072,-1220.58790377,0.00039795,31]
[394922365,1764121833081,-1220.58790377,0.00039795,31]
[394922366,1764121833091,-1220.58790379,0.00039795,31]
[394922367,1764121833100,-1220.58790379,0.00039795,31]
[394922368,1764121833109,-1220.58790379,0.00039795,31]
[394922369,1764121833120,-2092.48661491,0.00039797,2]
[394922370,1764121833130,-500.0,0.00039799,2]
[394922371,1764121833139,-1000.0,0.00039799,2]
[394922372,1764121833148,-500.0,0.00039799,8]
[394922373,1764121833158,-206.5664559,0.00039799,8]
[394922374,1764121833167,-179.59331336,0.00039799,8]
[394922375,1764121833176,-500.0,0.00039799,2]
[394922376,1764121833185,-188.70486745,0.00039799,8]
[394922377,1764121833195,-174.76347687,0.00039799,8]
[394922378,1764121833204,-500.0,0.00039799,8]
[394922379,1764121833214,-211.27095825,0.00039799,8]
[394922380,1764121833223,-185.45755829,0.00039799,8]
[394922381,1764121833233,-421.96969836,0.00039799,8]
[394922382,1764121833242,-257.87414155,0.00039799,8]
[394922383,1764121833252,-172.77476377,0.00039799,8]
[394922384,1764121833261,-268.25933255,0.00039799,8]
[394922385,1764121833270,-237.73908564,0.00039799,8]
[394922386,1764121833280,-207.07456455,0.00039799,120]
[394922387,1764121833289,-500.0,0.00039799,8]
[394922388,1764121833299,-262.18175445,0.00039799,8]
[394922389,1764121833308,-185.51484747,0.00039799,8]
[394922390,1764121833318,-389.25652961,0.00039799,8]
[394922391,1764121833327,-338.96378094,0.00039799,8]
[394922392,1764121833336,-288.63336933,0.00039799,8]
[394922393,1764121833345,-171.67232569,0.00039799,8]
[394922394,1764121833355,-155.33583452,0.00039799,8]
[394922395,1764121833365,-170.39073981,0.00039799,8]
[394922396,1764121833373,-161.21718636,0.00039799,8]
[394922397,1764121833384,-2969.66,0.00039799,8]
[394922398,1764121833393,-500.0,0.00039799,8]
[394922399,1764121833402,-193.76162543,0.00039799,8]
[394922400,1764121833412,-177.09953873,0.00039799,8]
[394922401,1764121833422,-160.45568315,0.00039799,8]
[394922402,1764121833432,-2641.0,0.00039799,8]
[394922403,1764121833442,-167.85440654,0.00039799,8]
[394922404,1764121833452,-500.0,0.00039799,8]
[394922405,1764121833462,-214.55937066,0.00039799,8]
[394922406,1764121833471,-155.4720588,0.00039799,8]
[394922407,1764121833480,-343.28739688,0.00039799,8]
[394922408,1764121833491,-235.71718031,0.00039799,8]
[394922409,1764121833500,-168.59227501,0.00039799,8]
[394922410,1764121833511,-190.32372453,0.00039799,8]
[394922411,1764121833521,-166.39518202,0.00039799,8]
[394922412,1764121833530,-339.9369493,0.00039799,8]
[394922413,1764121833539,-500.0,0.00039799,8]
[394922414,1764121833549,-500.0,0.00039799,8]
[394922415,1764121833558,-185.87659856,0.00039799,8]
[394922416,1764121833568,-500.0,0.00039799,8]
[394922417,1764121833577,-150.50891345,0.00039799,8]
[394922418,1764121833586,-150.71450063,0.00039799,8]
[394922419,1764121833595,-500.0,0.00039799,8]
[394922420,1764121833604,-184.8904961,0.00039799,8]
[394922421,1764121833613,-338.57593104,0.00039799,8]
[394922422,1764121833622,-487.08923843,0.00039799,8]